bitfinex/quotes_ETHUSD_20250908
["timestamp","ask_amount","ask_price","bid_price","bid_amount"]
[1757292546752,0.9416,4304.8,4303.9,2.32343276]
[1757292546951,0.9416,4304.8,4303.8,2.80297776]
[1757292547184,0.9416,4304.8,4303.8,0.47950001]
[1757292547385,2.32304225,4304.7,4303.9,3.0]
[1757292547586,5.697,4305.0,4304.6,0.2999]
[1757292547587,1.784,4305.0,4304.6,0.2999]
[1757292547861,3.924,4304.9,4304.6,0.2999]
[1757292548050,0.2984,4304.7,4304.3,0.4775]
[1757292548249,0.2984,4304.7,4304.3,2.32324422]
[1757292548451,4.3703,4304.9,4304.3,2.32324422]
[1757292549194,4.3703,4304.9,4304.4,2.32319547]
[1757292549488,3.924,4304.9,4304.5,2.80062977]
[1757292549658,3.924,4304.8,4304.5,2.80062977]
[1757292549859,3.924,4304.8,4304.5,2.32312977]
[1757292550290,3.924,4304.8,4304.6,2.32308101]
[1757292550495,3.924,4304.8,4304.5,2.32314007]
[1757292550904,1.784,4305.0,4304.7,0.2999]
[1757292551062,1.784,4305.0,4304.5,2.80063379]
[1757292551063,3.923,4304.9,4304.5,2.80063379]
[1757292551393,0.2984,4304.6,4304.3,2.32324978]
[1757292551584,3.923,4304.5,4304.3,2.32324978]
[1757292551900,3.923,4304.5,4303.8,0.47950001]
[1757292551901,0.7447,4304.4,4303.8,0.47950001]
[1757292552058,0.7447,4304.4,4304.0,2.32341604]
[1757292552392,0.7447,4304.4,4303.9,3.0]
[1757292552393,0.2984,4304.4,4304.2,2.32330155]
[1757292552785,3.923,4304.5,4304.2,2.32330155]
[1757292553003,4.3693,4304.5,4304.0,2.32341562]
[1757292553169,0.2984,4304.3,4303.8,0.00200001]
[1757292553368,0.2984,4304.3,4304.0,2.32338101]
[1757292553874,0.2984,4304.3,4303.8,0.00200001]
[1757292554202,2.7256,4304.2,4303.8,0.00200001]
[1757292554419,3.923,4304.1,4303.8,0.00200001]
[1757292554713,0.2984,4303.9,4303.8,0.00200001]
[1757292555211,1.24,4303.9,4303.8,0.00200001]
[1757292555570,0.7447,4303.9,4303.8,0.00200001]
[1757292556370,1.24,4303.9,4303.8,0.00200001]
[1757292556579,3.56347405,4303.9,4303.8,0.00200001]
[1757292557913,4.72285946,4303.9,4303.8,0.00200001]
[1757292558299,0.2984,4303.9,4303.8,0.00200001]
[1757292558979,0.7447,4303.9,4303.8,0.00200001]
[1757292559595,4.6667,4303.9,4303.8,0.00200001]
[1757292560284,7.48547405,4303.9,4303.8,0.00200001]
[1757292560489,5.162,4303.9,4303.8,0.00200001]
[1757292561086,4.6667,4303.9,4303.8,0.00200001]
[1757292561477,2.2793,4304.2,4303.8,0.00200001]
[1757292561700,3.922,4304.1,4303.8,0.30190001]
[1757292562092,3.922,4304.1,4303.8,0.00200001]
[1757292562288,0.2984,4303.9,4303.8,0.00200001]
[1757292562613,2.62187405,4303.9,4303.8,0.00200001]
[1757292562810,3.06817405,4303.9,4303.8,0.00200001]
[1757292563013,3.56347405,4303.9,4303.8,0.00200001]
[1757292564313,0.7447,4303.9,4303.8,0.00200001]
[1757292564994,3.06817405,4303.9,4303.8,0.00200001]
[1757292565193,0.7447,4303.9,4303.8,0.00200001]
[1757292565426,3.06817405,4303.9,4303.8,0.00200001]
[1757292565930,0.7447,4303.9,4303.8,0.00200001]
[1757292566340,0.2984,4303.9,4303.8,0.00200001]
[1757292568130,3.06917405,4303.9,4303.8,0.00200001]
[1757292568912,3.56287405,4303.9,4303.8,0.00200001]
[1757292569520,5.1574,4303.9,4303.8,0.00200001]
[1757292569726,4.6637,4303.9,4303.8,0.00200001]
[1757292570006,4.2164,4303.9,4303.8,0.00200001]
[1757292571107,4.2307,4303.9,4303.8,0.00200001]
[1757292571520,3.917,4303.9,4303.8,0.00200001]
[1757292571804,4.1073255,4304.2,4303.8,0.30200001]
[1757292572005,6.23940041,4304.1,4303.8,0.30200001]
[1757292572242,4.3633,4304.1,4303.8,0.00200001]
[1757292572452,0.3137,4303.9,4303.8,0.00200001]
[1757292572658,4.2297,4303.9,4303.8,0.00200001]
[1757292572963,4.677,4303.9,4303.8,0.00200001]
[1757292574025,4.2297,4303.9,4303.8,0.00200001]
[1757292574450,4.2277,4303.9,4303.8,0.00200001]
[1757292575245,3.914,4303.9,4303.8,0.79510001]
[1757292575452,3.914,4303.9,4303.8,3.11862805]
[1757292576427,4.029,4303.9,4303.8,0.79510001]
[1757292577153,4.029,4303.9,4303.8,3.11862805]
[1757292578862,0.116,4303.9,4303.8,3.11862805]
[1757292579026,1.9,4304.2,4304.1,2.32336609]
[1757292579229,5.813,4304.2,4304.1,7.49184761]
[1757292579470,1.784,4304.2,4304.1,7.94814761]
[1757292579646,5.697,4304.2,4304.1,7.49184761]
[1757292579834,5.697,4304.2,4304.1,2.62336609]
[1757292581962,5.697,4304.2,4304.1,2.32336609]
[1757292582160,5.698,4304.2,4304.1,2.32336609]
[1757292583361,6.575,4304.2,4303.9,4.37538152]
[1757292583532,6.575,4304.2,4304.0,2.3233687]
[1757292583732,6.1277,4304.2,4304.0,2.3233687]
[1757292584462,6.575,4304.2,4304.0,2.3233687]
[1757292584663,6.575,4304.2,4303.8,2.3255086]
[1757292584664,0.941,4304.1,4303.8,0.00200001]
[1757292584828,0.116,4303.9,4303.8,0.00200001]
[1757292585034,0.4297,4303.9,4303.8,0.00200001]
[1757292585231,1.3707,4303.9,4303.8,0.00200001]
[1757292585881,0.877,4303.9,4303.8,0.00200001]
[1757292586249,0.877,4303.9,4303.8,2.32552805]
[1757292586773,0.877,4303.9,4303.8,0.00200001]
[1757292586976,0.877,4303.9,4303.8,2.32552805]
[1757292587837,0.877,4303.9,4303.8,0.00200001]
[1757292588136,1.3707,4303.9,4303.8,0.00200001]
[1757292588357,0.877,4303.9,4303.8,0.00200001]
[1757292592342,1.3707,4303.9,4303.8,0.00200001]
[1757292593654,0.877,4303.9,4303.8,0.00200001]
[1757292595046,1.377,4303.9,4303.8,0.00200001]
[1757292595244,5.19967405,4303.9,4303.8,0.00200001]
[1757292595582,5.41664869,4303.9,4303.8,0.00200001]
[1757292597802,3.09317464,4303.9,4303.8,0.00200001]
[1757292598083,4.023,4303.9,4303.8,0.29480001]
[1757292598966,0.116,4303.9,4303.8,0.29480001]
[1757292599180,4.023,4303.9,4303.8,0.29480001]
[1757292599488,3.907,4303.9,4303.8,0.00200001]
[1757292600349,3.907,4303.9,4303.8,0.77710001]
[1757292600553,3.907,4303.9,4303.8,3.56262396]
[1757292601087,3.908,4303.9,4303.8,3.56262396]
[1757292601474,3.908,4303.9,4303.8,0.77710001]
[1757292601861,3.908,4303.9,4303.8,3.10062805]
[1757292603854,3.908,4303.9,4303.8,0.29480001]
[1757292604657,4.6342,4303.9,4303.8,0.00200001]
[1757292605891,4.1944,4303.9,4303.8,0.00200001]
[1757292606384,3.908,4303.9,4303.8,2.32552805]
[1757292606588,3.908,4303.9,4303.8,3.10062805]
[1757292607695,3.908,4303.9,4303.8,3.56262805]
[1757292608064,3.908,4303.9,4303.8,9.07483868]
[1757292608870,3.908,4303.9,4303.8,3.56262805]
[1757292609077,3.908,4303.9,4303.8,0.29480001]
[1757292609685,4.1944,4303.9,4303.8,0.00200001]
[1757292609908,4.6342,4303.9,4303.8,0.00200001]
[1757292611674,5.1342,4303.9,4303.8,0.00200001]
[1757292613806,6.07006105,4303.9,4303.8,0.00200001]
[1757292613978,8.3935351,4303.9,4303.8,0.00200001]
[1757292614178,8.61039584,4303.9,4303.8,0.00200001]
[1757292614488,8.61037841,4303.9,4303.8,0.00200001]
[1757292615613,6.28690436,4303.9,4303.8,0.00200001]
[1757292615912,3.907,4303.9,4303.8,3.10062805]
[1757292617692,3.907,4303.9,4303.8,3.10062805]
[1757292617881,4.1934,4303.9,4303.8,0.00200001]
[1757292618086,4.6332,4303.9,4303.8,0.00200001]
[1757292618294,3.907,4303.9,4303.8,0.00200001]
[1757292620020,3.907,4303.9,4303.8,2.61832805]
[1757292620228,3.907,4303.9,4303.8,0.29480001]
[1757292621021,0.001,4303.9,4303.8,0.29480001]
[1757292621323,3.907,4303.9,4303.8,0.77710001]
[1757292621527,3.907,4303.9,4303.8,3.10062805]
[1757292627535,0.001,4303.9,4303.8,6.57636333]
[1757292627716,0.001,4303.9,4303.8,6.66912805]
[1757292628997,0.001,4303.9,4303.8,6.21662805]
[1757292629226,0.001,4303.9,4303.8,6.66912805]
[1757292629697,0.001,4303.9,4303.8,6.21662805]
[1757292630032,0.001,4303.9,4303.8,6.66912805]
[1757292632539,0.001,4304.2,4304.1,8.51221063]
[1757292632837,0.001,4304.7,4304.2,5.32331211]
[1757292633037,0.001,4304.7,4304.6,11.26270685]
[1757292633445,0.001,4304.7,4304.6,12.18680685]
[1757292633739,0.001,4304.7,4304.6,12.88428419]
[1757292640931,0.001,4305.2,4304.7,5.32304225]
[1757292641161,0.001,4305.2,4305.1,10.83503704]
[1757292641443,0.001,4305.2,4305.1,15.16743704]
[1757292641740,0.001,4305.2,4305.1,16.78889278]
[1757292642049,0.001,4305.2,4305.1,16.33639278]
[1757292642253,0.001,4305.2,4305.1,16.78889278]
[1757292643040,0.001,4305.2,4305.1,16.33639278]
[1757292643839,0.001,4305.2,4305.1,16.78889278]
[1757292644359,0.026,4305.8,4305.7,2.32250272]
[1757292644506,0.026,4305.8,4305.7,7.83471335]
[1757292644706,0.7872,4305.8,4305.7,2.43850272]
[1757292644913,1.2566,4305.8,4305.7,2.43850272]
[1757292645122,1.2566,4305.8,4305.7,2.53147678]
[1757292645743,0.7943,4305.8,4305.7,2.53147678]
[1757292645948,1.2566,4305.8,4305.7,2.53147678]
[1757292646922,1.2566,4305.8,4305.7,0.09297406]
[1757292647467,0.7872,4305.8,4305.7,10.92768741]
[1757292648072,0.3249,4305.8,4305.7,10.92768741]
[1757292648678,0.026,4305.8,4305.7,10.92768741]
[1757292648971,0.026,4305.8,4305.7,11.35508741]
[1757292649357,0.026,4305.8,4305.7,11.82668741]
[1757292649670,1e-08,4305.8,4305.7,16.18318741]
[1757292649844,1e-08,4305.8,4305.7,15.73068741]
[1757292650050,0.29890001,4305.8,4305.7,9.43547678]
[1757292650251,0.29890001,4305.8,4305.7,5.53147678]
[1757292651040,1e-08,4305.8,4305.7,5.53147678]
[1757292651541,0.29890001,4305.8,4305.7,5.53147678]
[1757292651741,1e-08,4305.8,4305.7,5.53147678]
[1757292652437,0.29890001,4305.8,4305.7,5.53147678]
[1757292652658,0.76120001,4305.8,4305.7,5.53147678]
[1757292653539,1e-08,4305.8,4305.7,5.53147678]
[1757292653875,0.31390001,4305.8,4305.7,5.53147678]
[1757292654078,0.76280001,4305.8,4305.7,5.53147678]
[1757292654273,0.31390001,4305.8,4305.7,5.53147678]
[1757292654446,0.76280001,4305.8,4305.7,5.53147678]
[1757292654652,1.25410001,4305.8,4305.7,5.53147678]
[1757292656781,1.25410001,4305.8,4305.7,0.09297406]
[1757292656979,1.38151001,4305.8,4305.3,2.32271568]
[1757292657283,1.38151001,4305.8,4305.1,2.32482374]
[1757292657284,2.7242,4305.7,4305.5,2.32257019]
[1757292657484,2.7242,4305.7,4305.2,2.41576312]
[1757292657485,1.2541,4305.6,4305.2,0.09299439]
[1757292657855,0.7628,4305.6,4305.4,2.32261289]
[1757292658083,0.9402,4305.5,4305.4,2.32261289]
[1757292658262,1.2541,4305.5,4305.4,2.32261289]
[1757292659355,0.3139,4305.5,4305.4,2.32261289]
[1757292660180,0.7628,4305.5,4305.4,2.32261289]
[1757292660364,0.3139,4305.5,4305.4,9.98529649]
[1757292660567,0.7628,4305.5,4305.4,9.98529649]
[1757292660770,1.2541,4305.5,4305.4,3.0]
[1757292660991,1.2541,4305.5,4305.2,0.09299439]
[1757292661577,1.2541,4305.5,4305.2,2.41576557]
[1757292661784,0.3139,4305.5,4305.2,2.41576557]
[1757292661953,0.9402,4305.4,4305.2,0.09299439]
[1757292662158,6.5396185,4305.3,4305.2,0.09299439]
[1757292662577,2.32277246,4305.2,4305.1,0.002]
[1757292662982,1.2541,4305.2,4305.1,0.002]
[1757292663396,3.57687246,4305.2,4305.1,0.002]
[1757292663711,1.2541,4305.2,4305.1,0.002]
[1757292664053,3.57687246,4305.2,4305.1,0.002]
[1757292664259,4.57810881,4305.2,4305.1,0.002]
[1757292664567,2.25533635,4305.2,4305.1,0.002]
[1757292664954,1.2541,4305.2,4305.1,0.002]
[1757292665159,4.2169,4305.2,4305.1,0.002]
[1757292665464,4.2169,4305.2,4305.1,6.98751001]
[1757292666692,3.903,4305.2,4305.1,4.9650836]
[1757292666896,3.903,4305.2,4305.1,7.98539708]
[1757292667393,3.903,4305.2,4305.1,7.68499708]
[1757292667591,3.903,4305.2,4305.1,0.69948707]
[1757292667592,4.6658,4305.2,4305.1,0.69948707]
[1757292667798,5.62368,4305.2,4305.1,0.69948707]
[1757292668162,7.94645246,4305.2,4305.1,0.002]
[1757292669670,5.62368,4305.2,4305.1,0.002]
[1757292670090,5.1571,4305.2,4305.1,0.002]
[1757292672106,7.47987246,4305.2,4305.1,0.002]
[1757292672399,5.1571,4305.2,4305.1,0.002]
[1757292673499,4.6658,4305.2,4305.1,0.002]
[1757292674380,5.1571,4305.2,4305.1,0.002]
[1757292675314,7.47987246,4305.2,4305.1,0.002]
[1757292676569,5.1571,4305.2,4305.1,0.002]
[1757292676871,8.46011711,4305.2,4305.1,0.002]
[1757292678581,3.904,4305.2,4305.1,0.002]
[1757292678899,4.6668,4305.2,4305.1,0.002]
[1757292679108,4.6658,4305.2,4305.1,0.002]
[1757292680408,3.904,4305.2,4305.1,0.3024]
[1757292680980,3.904,4305.2,4305.1,0.002]
[1757292683013,3.904,4305.2,4305.1,0.3024]
[1757292683905,3.904,4305.2,4305.1,0.002]
[1757292684619,5.1091,4305.2,4305.1,0.002]
[1757292685802,5.8522775,4305.2,4305.1,0.002]
[1757292686123,8.17504996,4305.2,4305.1,0.002]
[1757292690313,5.3987775,4305.2,4305.1,0.002]
[1757292690525,8.17504996,4305.2,4305.1,0.002]
[1757292692627,8.89075781,4305.2,4305.1,0.002]
[1757292694436,6.22677246,4305.2,4305.1,0.3046]
[1757292694627,3.904,4305.2,4305.1,0.002]
[1757292694817,6.22677246,4305.2,4305.1,0.002]
[1757292695019,6.52817246,4305.2,4305.1,0.002]
[1757292695915,4.2054,4305.2,4305.1,0.002]
[1757292696116,3.904,4305.2,4305.1,0.002]
[1757292696324,0.95255937,4305.4,4305.1,0.002]
[1757292696528,6.22575622,4305.3,4305.1,0.002]
[1757292697109,3.903,4305.3,4305.1,0.002]
[1757292697639,3.07437246,4305.2,4305.1,0.002]
[1757292697843,3.86737102,4305.2,4305.1,0.002]
[1757292698006,4.32087102,4305.2,4305.1,0.002]
[1757292699502,4.06952193,4305.3,4305.1,0.3046]
[1757292699708,4.06952193,4305.3,4305.1,0.7681]
[1757292700209,6.39225074,4305.3,4305.1,0.7681]
[1757292700409,4.06952193,4305.3,4305.1,0.3046]
[1757292700638,2.32277246,4305.2,4305.1,0.002]
[1757292701020,2.62417246,4305.2,4305.1,0.002]
[1757292701223,6.52717246,4305.2,4305.1,0.002]
[1757292701605,4.2044,4305.2,4305.1,0.002]
[1757292701831,3.903,4305.2,4305.1,0.002]
[1757292702438,3.903,4305.2,4305.1,0.3046]
[1757292702844,6.22577246,4305.2,4305.1,0.3046]
[1757292703040,6.22577246,4305.2,4305.1,0.002]
[1757292703776,3.903,4305.2,4305.1,0.002]
[1757292704323,6.22577246,4305.2,4305.1,0.002]
[1757292704513,6.52717246,4305.2,4305.1,0.002]
[1757292704714,6.98067246,4305.2,4305.1,0.002]
[1757292706443,7.43087246,4305.2,4305.1,0.002]
[1757292706744,9.13839974,4305.2,4305.1,0.002]
[1757292707040,9.31126375,4305.2,4305.1,0.002]
[1757292713531,10.10349728,4305.2,4305.1,0.002]
[1757292714441,10.10409824,4305.2,4305.1,0.002]
[1757292716530,9.65389824,4305.2,4305.1,0.002]
[1757292716731,1.68121897,4305.2,4305.1,0.002]
[1757292717038,5.08366237,4305.2,4305.1,0.7802]
[1757292717257,7.40643483,4305.2,4305.1,0.7802]
[1757292717434,9.69099143,4305.2,4305.1,0.7802]
[1757292717627,9.69099143,4305.2,4305.1,0.2922]
[1757292718785,9.69099143,4305.2,4305.1,0.002]
[1757292718928,10.45269143,4305.2,4305.1,0.002]
[1757292719765,12.20112789,4305.2,4305.1,0.002]
[1757292721582,16.7042408,4305.2,4305.1,0.002]
[1757292722623,12.33122357,4305.2,4305.1,0.002]
[1757292722827,15.33122357,4305.2,4305.1,0.002]
[1757292724717,18.15862357,4305.2,4305.1,0.002]
[1757292725005,18.92032357,4305.2,4305.1,0.002]
[1757292725695,14.54692357,4305.2,4305.1,0.002]
[1757292725896,16.88108711,4305.2,4305.1,0.2922]
[1757292726194,16.88108711,4305.2,4305.1,0.002]
[1757292727297,16.57812742,4305.2,4305.1,0.7802]
[1757292727800,16.57812742,4305.2,4305.1,0.2922]
[1757292730005,16.57812742,4305.2,4305.1,0.002]
[1757292734182,16.57783203,4305.2,4305.1,0.002]
[1757292735691,16.57683203,4305.2,4305.1,0.002]
[1757292737210,12.67583203,4305.2,4305.1,0.002]
[1757292737410,16.57683203,4305.2,4305.1,0.002]
[1757292740405,16.86713203,4305.2,4305.1,0.002]
[1757292740929,17.33853203,4305.2,4305.1,0.002]
[1757292742314,17.33791102,4305.2,4305.1,0.002]
[1757292742715,16.57621102,4305.2,4305.1,0.002]
[1757292743810,16.88461102,4305.2,4305.1,0.002]
[1757292744220,17.35601102,4305.2,4305.1,0.002]
[1757292744792,16.88461102,4305.2,4305.1,0.002]
[1757292744989,2.50043856,4305.2,4305.1,0.3015]
[1757292745188,5.685,4305.2,4305.1,0.7973]
[1757292745589,5.685,4305.2,4305.1,1.0988]
[1757292745796,5.685,4305.2,4305.1,0.7973]
[1757292746012,8.00777246,4305.2,4305.1,0.7973]
[1757292746215,9.57957246,4305.2,4305.1,0.002]
[1757292749125,9.7962297,4305.2,4305.1,0.002]
[1757292751550,12.16349321,4305.2,4305.1,0.002]
[1757292751843,15.2279932,4305.2,4305.1,0.002]
[1757292753913,11.3279932,4305.2,4305.1,0.002]
[1757292754114,15.2279932,4305.2,4305.1,0.002]
[1757292755030,22.2879932,4305.2,4305.1,0.002]
[1757292755330,22.40935581,4305.2,4305.1,0.002]
[1757292755929,3.11498829,4304.8,4304.7,1e-08]
[1757292756130,24.17282353,4304.8,4304.7,1e-08]
[1757292756322,25.64894281,4304.8,4304.7,1e-08]
[1757292756633,25.74199626,4304.8,4304.7,1e-08]
[1757292758417,25.95826995,4304.8,4304.7,1e-08]
[1757292760810,20.44552436,4304.8,4304.7,1e-08]
[1757292763528,16.54552436,4304.8,4304.7,1e-08]
[1757292763857,20.44552436,4304.8,4304.7,1e-08]
[1757292768054,19.97952436,4304.8,4304.7,1e-08]
[1757292768253,15.29972436,4304.8,4304.7,1e-08]
[1757292768414,19.50812436,4304.8,4304.7,0.49580001]
[1757292768616,19.97952436,4304.8,4304.7,1e-08]
[1757292768948,19.07152436,4304.8,4304.7,1e-08]
[1757292769124,19.86352436,4304.8,4304.7,1e-08]
[1757292773014,20.32952436,4304.8,4304.7,1e-08]
[1757292776325,20.33052436,4304.8,4304.7,1e-08]
[1757292776553,15.18472436,4304.8,4304.7,0.31620001]
[1757292776768,19.08472436,4304.8,4304.7,0.31620001]
[1757292776919,19.08472436,4304.8,4304.7,1e-08]
[1757292777656,19.08479814,4304.8,4304.7,1e-08]
[1757292778021,14.39279814,4304.8,4304.7,0.77340001]
[1757292778221,17.66969931,4304.8,4304.7,1.20110001]
[1757292778453,18.46169931,4304.8,4304.7,1.20110001]
[1757292778905,18.46169931,4304.8,4304.7,0.77340001]
[1757292779030,20.54016085,4304.8,4304.7,0.77340001]
[1757292780438,20.30984157,4304.8,4304.7,1.20110001]
[1757292780641,20.30984157,4304.8,4304.7,0.77340001]
[1757292780839,16.40984157,4304.8,4304.7,0.77340001]
[1757292781156,20.30984157,4304.8,4304.7,0.77340001]
[1757292781722,16.40984157,4304.8,4304.7,0.77340001]
[1757292781926,20.30884157,4304.8,4304.7,0.77340001]
[1757292782126,20.37334156,4304.8,4304.7,1.20110001]
[1757292782771,20.37334156,4304.8,4304.7,0.77340001]
[1757292782967,20.37334156,4304.8,4304.7,1.20110001]
[1757292783669,20.37403258,4304.8,4304.7,1.20110001]
[1757292783923,11.39657104,4304.8,4304.7,0.77340001]
[1757292784184,14.41051759,4304.8,4304.7,1.20110001]
[1757292784349,15.20251759,4304.8,4304.7,1.20110001]
[1757292784761,15.20251759,4304.8,4304.7,0.77340001]
[1757292785479,15.20251759,4304.8,4304.7,1.20110001]
[1757292785656,10.51151759,4304.8,4304.7,1.20110001]
[1757292785853,14.41051759,4304.8,4304.7,1.20110001]
[1757292786255,14.2803692,4304.8,4304.7,1.20110001]
[1757292786462,14.2803692,4304.8,4304.7,0.77340001]
[1757292787174,15.0723692,4304.8,4304.7,0.77340001]
[1757292789937,15.0723692,4304.8,4304.7,1.20110001]
[1757292791078,15.07197236,4304.8,4304.7,1.20110001]
[1757292791375,4.39767438,4304.8,4304.7,1.20110001]
[1757292791776,3.96449999,4304.8,4304.7,5.57641518]
[1757292792391,0.06549999,4304.8,4304.7,5.57641518]
[1757292792688,3.96449999,4304.8,4304.7,5.57641518]
[1757292793089,4.07949999,4304.8,4304.7,7.89945743]
[1757292793607,0.18149999,4304.8,4304.7,7.89945743]
[1757292793761,4.07949999,4304.8,4304.7,7.89945743]
[1757292794411,4.07949999,4304.8,4304.7,8.59705966]
[1757292794819,3.96349999,4304.8,4304.7,8.59705966]
[1757292795182,3.96349999,4304.8,4304.7,11.59705966]
[1757292795183,0.06549999,4304.8,4304.7,11.59705966]
[1757292795444,3.96349999,4304.8,4304.7,9.39001741]
[1757292795718,3.96349999,4304.8,4304.7,11.59705966]
[1757292797625,3.96349999,4304.8,4304.7,9.27401741]
[1757292797925,3.96349999,4304.8,4304.7,11.59705966]
[1757292799698,3.96349999,4304.8,4304.7,5.84631741]
[1757292799913,3.96349999,4304.8,4304.7,0.77340001]
[1757292800211,3.96349999,4304.8,4304.7,0.31620001]
[1757292800618,4.25849999,4304.8,4304.7,1e-08]
[1757292801314,7.02428828,4304.8,4304.7,1e-08]
[1757292802189,6.95978829,4304.8,4304.7,1e-08]
[1757292803441,9.21363964,4304.8,4304.7,1e-08]
[1757292803752,10.36312855,4304.8,4304.7,1e-08]
[1757292805146,13.49281164,4304.8,4304.7,1e-08]
[1757292808106,11.74451164,4304.8,4304.7,1e-08]
[1757292808442,12.20441164,4304.8,4304.7,1e-08]
[1757292808658,6.09941164,4304.8,4304.7,1e-08]
[1757292808809,6.09941164,4304.8,4304.7,0.79950001]
[1757292808810,4.33346173,4304.8,4304.7,0.79950001]
[1757292809139,7.23233283,4304.8,4304.7,0.79950001]
[1757292809310,7.23233283,4304.8,4304.7,1e-08]
[1757292810333,8.21572938,4304.8,4304.7,1e-08]
[1757292810506,9.26959169,4304.8,4304.7,1e-08]
[1757292811142,8.80969169,4304.8,4304.7,0.49480001]
[1757292811338,8.21572938,4304.8,4304.7,1e-08]
[1757292811634,7.75582938,4304.8,4304.7,1e-08]
[1757292811936,5.12574109,4304.8,4304.7,0.30470001]
[1757292812139,5.12574109,4304.8,4304.7,0.79950001]
[1757292812340,7.44872938,4304.8,4304.7,0.79950001]
[1757292813146,1.22874109,4304.8,4304.7,0.79950001]
[1757292813337,4.90934454,4304.8,4304.7,0.79950001]
[1757292813642,5.12574109,4304.8,4304.7,0.79950001]
[1757292813813,7.44872938,4304.8,4304.7,0.79950001]
[1757292814443,5.12574109,4304.8,4304.7,0.79950001]
[1757292814740,7.44872938,4304.8,4304.7,0.79950001]
[1757292815042,7.44872938,4304.8,4304.7,0.30470001]
[1757292815338,7.75582938,4304.8,4304.7,1e-08]
[1757292815549,9.22360198,4304.8,4304.7,1e-08]
[1757292815838,9.71900198,4304.8,4304.7,1e-08]
[1757292816538,9.22360198,4304.8,4304.7,1e-08]
[1757292816844,7.44872938,4304.8,4304.7,1e-08]
[1757292817312,7.75582938,4304.8,4304.7,1e-08]
[1757292817726,8.21572938,4304.8,4304.7,1e-08]
[1757292818122,7.75582938,4304.8,4304.7,1e-08]
[1757292818422,7.44872938,4304.8,4304.7,1e-08]
[1757292819022,3.55172938,4304.8,4304.7,1e-08]
[1757292819239,5.12574109,4304.8,4304.7,0.79950001]
[1757292819612,7.44872938,4304.8,4304.7,0.79950001]
[1757292820342,5.12574109,4304.8,4304.7,0.79950001]
[1757292820753,7.44872938,4304.8,4304.7,0.79950001]
[1757292821443,4.11734454,4304.8,4304.7,0.79950001]
[1757292821742,7.99933283,4304.8,4304.7,1e-08]
[1757292822638,7.53943283,4304.8,4304.7,1e-08]
[1757292823645,7.23233283,4304.8,4304.7,0.79950001]
[1757292823854,7.23233283,4304.8,4304.7,1e-08]
[1757292824348,4.90934454,4304.8,4304.7,1e-08]
[1757292824639,4.90934454,4304.8,4304.7,0.30470001]
[1757292825142,1.01234454,4304.8,4304.7,0.30470001]
[1757292825330,4.11734454,4304.8,4304.7,0.79950001]
[1757292826259,0.22034454,4304.8,4304.7,7.95475743]
[1757292826431,4.11734454,4304.8,4304.7,7.95475743]
[1757292828116,3.898,4304.8,4304.7,7.95475743]
[1757292829139,0.001,4304.8,4304.7,10.95475743]
[1757292829341,3.898,4304.8,4304.7,10.95475743]
[1757292829545,0.001,4304.8,4304.7,10.95475743]
[1757292829746,3.897,4304.8,4304.7,10.95475743]
[1757292830043,3.897,4304.8,4304.7,5.17481518]
[1757292830637,3.897,4304.8,4304.7,7.49785743]
[1757292831657,3.897,4304.8,4304.7,0.30470001]
[1757292831843,3.897,4304.8,4304.7,7.00305743]
[1757292833047,3.897,4304.8,4304.7,4.68001518]
[1757292833252,4.6504,4304.8,4304.7,1e-08]
[1757292833449,5.1488,4304.8,4304.7,1e-08]
[1757292834347,4.6504,4304.8,4304.7,1e-08]
[1757292834553,6.97338829,4304.8,4304.7,1e-08]
[1757292834732,7.47178829,4304.8,4304.7,1e-08]
[1757292835132,5.1488,4304.8,4304.7,1e-08]
[1757292835552,8.2189573,4304.8,4304.7,1e-08]
[1757292835756,5.89596901,4304.8,4304.7,1e-08]
[1757292835954,4.6504,4304.8,4304.7,1e-08]
[1757292836723,6.97338829,4304.8,4304.7,1e-08]
[1757292837922,7.47178829,4304.8,4304.7,1e-08]
[1757292838723,5.1488,4304.8,4304.7,1e-08]
[1757292838930,7.47178829,4304.8,4304.7,1e-08]
[1757292839661,9.24324986,4304.8,4304.7,1e-08]
[1757292840431,9.52478803,4304.8,4304.7,1e-08]
[1757292840961,9.5247916,4304.8,4304.7,1e-08]
[1757292841159,9.0263916,4304.8,4304.7,1e-08]
[1757292841656,10.8113916,4304.8,4304.7,1e-08]
[1757292843830,11.3097916,4304.8,4304.7,1e-08]
[1757292845191,11.80930257,4304.8,4304.7,1e-08]
[1757292845331,15.02607932,4304.8,4304.7,1e-08]
[1757292845661,15.15613381,4304.8,4304.7,1e-08]
[1757292846265,15.24918141,4304.8,4304.7,1e-08]
[1757292846444,22.30918141,4304.8,4304.7,1e-08]
[1757292847462,22.30818141,4304.8,4304.7,1e-08]
[1757292848430,22.30918141,4304.8,4304.7,1e-08]
[1757292854787,22.30875028,4304.8,4304.7,1e-08]
[1757292855993,18.41275028,4304.8,4304.7,1e-08]
[1757292856197,22.30875028,4304.8,4304.7,1e-08]
[1757292857699,22.30875028,4304.8,4304.1,0.002]
[1757292857700,0.792,4304.3,4304.1,1e-08]
[1757292858004,10.25420958,4304.2,4304.1,1e-08]
[1757292858201,12.5686624,4304.2,4304.1,1e-08]
[1757292858381,19.6286624,4304.2,4304.1,1e-08]
[1757292864498,19.6296624,4304.2,4304.1,1e-08]
[1757292864697,21.83426138,4304.2,4304.1,1e-08]
[1757292865789,21.83526138,4304.2,4304.1,1e-08]
[1757292866776,6.11558203,4303.7,4303.6,1e-08]
[1757292867003,12.35972388,4303.7,4303.6,1e-08]
[1757292867309,14.33270322,4303.7,4303.6,1e-08]
[1757292867606,15.99832095,4303.7,4303.6,1e-08]
[1757292867807,23.05832095,4303.7,4303.6,1e-08]
[1757292868808,19.33420326,4303.7,4303.6,1e-08]
[1757292868995,21.97240326,4303.7,4303.6,1e-08]
[1757292869218,23.23020326,4303.7,4303.6,1e-08]
[1757292869808,16.17020326,4303.7,4303.6,1e-08]
[1757292870891,15.68260326,4303.7,4303.6,1e-08]